fUSD/lending_fUSD_20260413
["ID","MTS","AMOUNT","RATE_DAILY","PERIOD"]
[420369575,1776041581528,-1064.34,0.00039178,15]
[420369576,1776041581547,-1670.47,0.00039178,15]
[420369577,1776041581556,-761.34,0.00039178,15]
[420369578,1776041581566,-1111.33,0.00039178,15]
[420369579,1776041581580,-500.0,0.00039178,15]
[420369580,1776041581592,-500.0,0.00039178,15]
[420369581,1776041581601,-808.18,0.00039178,15]
[420369582,1776041581611,-548.68,0.00039178,15]
[420369583,1776041581622,-921.66,0.00039178,15]
[420369584,1776041581635,-500.0,0.00039178,15]
[420369585,1776041581645,-500.0,0.00039178,15]
[420369586,1776041581654,-500.0,0.00039178,15]
[420369587,1776041581666,-500.0,0.00039178,15]
[420369588,1776041581679,-1561.09,0.00039178,15]
[420369589,1776041581694,-500.0,0.00039178,15]
[420369590,1776041581705,-1822.44,0.00039178,15]
[420369591,1776041581715,-500.0,0.00039178,15]
[420369592,1776041581724,-500.0,0.00039178,15]
[420369593,1776041581743,-479.37214989,0.00039178,15]
[420369594,1776041581754,-887.2,0.00039178,15]
[420369595,1776041581764,-810.27,0.00039178,10]
[420369596,1776041581780,-1212.99,0.00039178,15]
[420369597,1776041581789,-500.0,0.00039178,15]
[420369598,1776041581801,-1687.08,0.00039178,15]
[420369599,1776041581820,-836.17,0.00039178,15]
[420369600,1776041581830,-500.0,0.00039178,15]
[420369601,1776041581840,-616.32,0.00039178,15]
[420369602,1776041581853,-500.0,0.00039178,15]
[420369603,1776041581871,-317.97915911,0.00039178,15]
[420369604,1776041581894,-500.0,0.00039178,15]
[420369605,1776041581903,-500.0,0.00039178,15]
[420369606,1776041581914,-500.0,0.00039178,15]
[420369607,1776041581936,-500.0,0.00039178,15]
[420369608,1776041581951,-990.96,0.00039178,15]
[420369609,1776041581964,-500.0,0.00039178,15]
[420369610,1776041581989,-500.0,0.00039178,15]
[420369611,1776041582007,-1300.76,0.00039178,15]
[420369612,1776041582016,-636.59,0.00039178,15]
[420369613,1776041582045,-500.0,0.00039178,15]
[420369614,1776041582055,-500.0,0.00039178,15]
[420369615,1776041582071,-1007.92,0.00039178,15]
[420369616,1776041582081,-500.0,0.00039178,15]
[420369617,1776041582104,-500.0,0.00039178,15]
[420369618,1776041582114,-1138.59,0.00039178,15]
[420369619,1776041582127,-1730.4,0.00039178,15]
[420369620,1776041582145,-1000.31,0.00039178,15]
[420369621,1776041582154,-903.84,0.00039178,15]
[420369622,1776041582166,-619.67,0.00039178,15]
[420369623,1776041582204,-500.0,0.00039178,15]
[420369624,1776041582219,-500.0,0.00039178,15]
[420369625,1776041582243,-1778.75,0.00039178,15]
[420369626,1776041582254,-1153.37,0.00039178,15]
[420369627,1776041582293,-500.0,0.00039178,15]
[420369628,1776041582325,-500.0,0.00039178,15]
[420369629,1776041582335,-1092.35,0.00039178,15]
[420369630,1776041582381,-500.0,0.00039178,15]
[420369631,1776041582398,-500.0,0.00039178,15]
[420369632,1776041582418,-256.91446301,0.00039178,15]
[420369633,1776041582432,-500.0,0.00039178,15]
[420369634,1776041582461,-500.0,0.00039178,15]
[420369635,1776041582472,-1843.04,0.00039178,15]
[420369636,1776041582494,-500.0,0.00039178,15]
[420369637,1776041582507,-511.65340457,0.00039178,15]
[420369638,1776041582520,-500.0,0.00039178,15]
[420369639,1776041582544,-500.0,0.00039178,15]
[420369640,1776041582554,-503.0,0.00039178,15]
[420369641,1776041582565,-500.0,0.00039178,15]
[420369642,1776041582579,-500.0,0.00039178,15]
[420369643,1776041582590,-656.69,0.00039178,15]
[420369644,1776041582600,-500.0,0.00039178,15]
[420369645,1776041582610,-500.0,0.00039178,15]
[420369646,1776041582633,-1937.81,0.00039178,15]
[420369647,1776041582643,-754.33,0.00039178,15]
[420369648,1776041582653,-500.0,0.00039178,15]
[420369649,1776041582672,-1714.04,0.00039178,15]
[420369650,1776041582690,-500.0,0.00039178,15]
[420369651,1776041582701,-1292.76,0.00039178,15]
[420369652,1776041582715,-500.0,0.00039178,15]
[420369653,1776041582730,-500.0,0.00039178,15]
[420369654,1776041582741,-1586.56,0.00039178,15]
[420369655,1776041582758,-500.0,0.00039178,15]
[420369656,1776041582773,-500.0,0.00039178,15]
[420369657,1776041582782,-531.5,0.00039178,15]
[420369658,1776041582794,-1395.23,0.00039178,15]
[420369659,1776041582811,-1508.28,0.00039178,15]
[420369660,1776041582826,-1383.28,0.00039178,15]
[420369661,1776041582836,-500.0,0.00039178,15]
[420369662,1776041582861,-1557.25,0.00039178,15]
[420369663,1776041582873,-521.36,0.00039178,15]
[420369664,1776041582887,-500.0,0.00039178,15]
[420369665,1776041582918,-1577.69,0.00039178,15]
[420369666,1776041582929,-2158.93,0.00039178,15]
[420369667,1776041582961,-933.09,0.00039178,15]
[420369668,1776041582971,-805.64,0.00039178,15]
[420369669,1776041583011,-551.92,0.00039178,15]
[420369670,1776041583042,-781.58,0.00039178,15]
[420369671,1776041583075,-500.0,0.00039178,15]
[420369672,1776041583096,-198.23750286,0.00039178,15]
[420369673,1776041583119,-1216.47,0.00039178,15]
[420369674,1776041583137,-500.0,0.00039178,15]
[420369675,1776041583171,-500.0,0.00039178,15]
[420369676,1776041583181,-500.0,0.00039178,15]
[420369677,1776041583207,-269.04,0.00039178,15]
[420369678,1776041583218,-500.0,0.00039178,15]
[420369679,1776041583235,-1203.91,0.00039178,15]
[420369680,1776041583254,-665.94,0.00039178,15]
[420369681,1776041583280,-500.0,0.00039178,15]
[420369682,1776041583290,-1346.41,0.00039178,15]
[420369683,1776041583314,-512.95573535,0.00039178,15]
[420369684,1776041583324,-500.0,0.00039178,15]
[420369685,1776041583338,-500.0,0.00039178,15]
[420369686,1776041583357,-500.0,0.00039178,15]
[420369687,1776041583368,-3502.27,0.00039178,15]
[420369688,1776041583388,-1160.63,0.00039178,15]
[420369689,1776041583398,-500.0,0.00039178,15]
[420369690,1776041583409,-500.0,0.00039178,15]
[420369691,1776041583420,-2492.69,0.00039178,15]
[420369692,1776041583435,-812.32,0.00039178,15]
[420369693,1776041583446,-500.0,0.00039178,15]
[420369694,1776041583456,-500.0,0.00039178,15]
[420369695,1776041583473,-713.05,0.00039178,15]
[420369696,1776041583487,-2542.2,0.00039178,15]
[420369697,1776041583499,-500.0,0.00039178,15]
[420369698,1776041583512,-513.27,0.00039178,15]
[420369699,1776041583528,-500.0,0.00039178,15]
[420369700,1776041583539,-555.52021925,0.00039178,15]
[420369701,1776041583550,-857.17,0.00039178,15]
[420369702,1776041583569,-767.53,0.00039178,15]
[420369703,1776041583579,-1949.22,0.00039178,15]
[420369704,1776041583592,-500.0,0.00039178,15]
[420369705,1776041583608,-500.0,0.00039178,15]
[420369706,1776041583618,-2000.83,0.00039178,15]
[420369707,1776041583631,-1020.08,0.00039178,15]
[420369708,1776041583664,-671.18,0.00039178,15]
[420369709,1776041583674,-500.0,0.00039178,15]
[420369710,1776041583695,-500.0,0.00039178,15]
[420369711,1776041583722,-1814.36,0.00039178,15]
[420369712,1776041583740,-500.0,0.00039178,15]
[420369713,1776041583765,-500.0,0.00039178,15]
[420369714,1776041583776,-2557.75,0.00039178,15]
[420369715,1776041583796,-1239.9,0.00039178,15]
[420369716,1776041583812,-500.0,0.00039178,15]
[420369717,1776041583841,-1024.03,0.00039178,15]
[420369718,1776041583853,-1654.08,0.00039178,15]
[420369719,1776041583867,-2033.34,0.00039178,15]
[420369720,1776041583887,-500.0,0.00039178,15]
[420369721,1776041583902,-500.0,0.00039178,15]
[420369722,1776041583943,-500.0,0.00039178,15]
[420369723,1776041583974,-500.0,0.00039178,15]
[420369724,1776041583989,-1913.26,0.00039178,15]
[420369725,1776041584010,-500.0,0.00039178,15]
[420369726,1776041584036,-2148.07,0.00039178,15]
[420369727,1776041584047,-223.40373179,0.00039178,15]
[420369728,1776041584075,-1846.32,0.00039178,15]
[420369729,1776041584085,-597.6547048,0.00039178,15]
[420369730,1776041584095,-500.0,0.00039178,15]
[420369731,1776041584128,-500.0,0.00039178,15]
[420369732,1776041584142,-1029.57,0.00039178,15]
[420369733,1776041584174,-500.0,0.00039178,15]
[420369734,1776041584184,-515.85,0.00039178,15]
[420369735,1776041584194,-667.8,0.00039178,15]
[420369736,1776041584212,-1978.02,0.00039178,15]
[420369737,1776041584231,-500.0,0.00039178,15]
[420369738,1776041584241,-500.0,0.00039178,15]
[420369739,1776041584253,-500.0,0.00039178,15]
[420369740,1776041584272,-500.0,0.00039178,15]
[420369741,1776041584288,-500.0,0.00039178,15]
[420369742,1776041584298,-2182.18,0.00039178,15]
[420369743,1776041584311,-500.0,0.00039178,15]
[420369744,1776041584322,-2335.03,0.00039178,15]
[420369745,1776041584334,-1212.24,0.00039178,15]
[420369746,1776041584352,-500.0,0.00039178,15]
[420369747,1776041584362,-1195.42,0.00039178,15]
[420369748,1776041584382,-500.0,0.00039178,15]
[420369749,1776041584395,-500.0,0.00039178,15]
[420369750,1776041584405,-1419.56,0.00039178,15]
[420369751,1776041584449,-1692.69,0.00039178,15]
[420369752,1776041584460,-606.26,0.00039178,15]
[420369753,1776041584495,-500.0,0.00039178,15]
[420369754,1776041584511,-500.0,0.00039178,15]
[420369755,1776041584555,-500.0,0.00039178,15]
[420369756,1776041584574,-884.21,0.00039178,15]
[420369757,1776041584602,-500.0,0.00039178,15]
[420369758,1776041584632,-571.57738429,0.00039178,15]
[420369759,1776041584655,-156.24,0.00039178,15]
[420369760,1776041584671,-500.0,0.00039178,15]
[420369761,1776041584696,-500.0,0.00039178,15]
[420369762,1776041584720,-1649.72,0.00039178,15]
[420369763,1776041584730,-500.0,0.00039178,15]
[420369764,1776041584740,-621.97,0.00039178,15]
[420369765,1776041584760,-559.48,0.00039178,15]
[420369766,1776041584773,-1537.45,0.00039178,15]
[420369767,1776041584782,-500.0,0.00039178,15]
[420369768,1776041584794,-1130.48,0.00039178,15]
[420369769,1776041584809,-500.0,0.00039178,15]
[420369770,1776041584819,-500.0,0.00039178,15]
[420369771,1776041584837,-870.95,0.00039178,15]
[420369772,1776041584847,-500.0,0.00039178,15]
[420369773,1776041584857,-500.0,0.00039178,15]
[420369774,1776041584871,-500.0,0.00039178,15]
[420369775,1776041584881,-706.59,0.00039178,15]
[420369776,1776041584892,-687.5,0.00039178,15]
[420369777,1776041584902,-629.42,0.00039178,15]
[420369778,1776041584918,-500.0,0.00039178,15]
[420369779,1776041584930,-500.0,0.00039178,15]
[420369780,1776041584940,-1620.29,0.00039178,15]
[420369781,1776041584956,-173.7248335,0.00039178,15]
[420369782,1776041584970,-2507.84,0.00039178,15]
[420369783,1776041584982,-730.08,0.00039178,15]
[420369784,1776041584996,-500.0,0.00039178,15]
[420369785,1776041585006,-500.0,0.00039178,15]
[420369786,1776041585022,-1791.97,0.00039178,15]
[420369787,1776041585034,-620.62,0.00039178,15]
[420369788,1776041585044,-5639.6,0.00039178,15]
[420369789,1776041585058,-500.0,0.00039178,15]
[420369790,1776041585068,-595.83,0.00039178,15]
[420369791,1776041585082,-500.0,0.00039178,15]
[420369792,1776041585095,-532.56,0.00039178,15]
[420369793,1776041585121,-500.0,0.00039178,15]
[420369794,1776041585131,-791.1,0.00039178,15]
[420369795,1776041585142,-1272.74,0.00039178,15]
[420369796,1776041585159,-689.29,0.00039178,15]
[420369797,1776041585169,-500.0,0.00039178,15]
[420369798,1776041585328,-507.04,0.00039178,15]
[420369799,1776041585338,-500.0,0.00039178,15]
[420369800,1776041585350,-774.01,0.00039178,15]
[420369801,1776041585372,-1988.49,0.00039178,15]
[420369802,1776041585382,-500.0,0.00039178,15]
[420369803,1776041585394,-1059.84,0.00039178,15]
[420369804,1776041585413,-500.0,0.00039178,15]
[420369805,1776041585432,-500.0,0.00039178,15]
[420369806,1776041585443,-500.0,0.00039178,15]
[420369807,1776041585455,-525.86,0.00039178,15]
[420369808,1776041585468,-1410.63,0.00039178,15]
[420369809,1776041585482,-2601.05,0.00039178,15]
[420369810,1776041585495,-1360.07,0.00039178,15]
[420369811,1776041585505,-533.13015197,0.00039178,15]
[420369812,1776041585526,-500.0,0.00039178,15]
[420369813,1776041585539,-500.0,0.00039178,15]
[420369814,1776041585556,-544.4,0.00039178,15]
[420369815,1776041585566,-500.0,0.00039178,15]
[420369816,1776041585586,-2602.21,0.00039178,15]
[420369817,1776041585601,-1246.17,0.00039178,15]
[420369818,1776041585617,-545.0,0.00039178,15]
[420369819,1776041585627,-1431.19,0.00039178,15]
[420369820,1776041585643,-910.09,0.00039178,15]
[420369821,1776041585657,-709.26,0.00039178,15]
[420369822,1776041585680,-825.37,0.00039178,15]
[420369823,1776041585691,-1026.91,0.00039178,15]
[420369824,1776041585712,-572.48004876,0.00039178,15]
[420369825,1776041585723,-1431.24,0.00039178,15]
[420369826,1776041585733,-2532.94,0.00039178,15]
[420369827,1776041585746,-500.0,0.00039178,15]
[420369828,1776041585762,-500.0,0.00039178,15]
[420369829,1776041585772,-500.0,0.00039178,15]
[420369830,1776041585782,-730.35,0.00039178,15]
[420369831,1776041585794,-4735.33,0.00039178,15]
[420369832,1776041585816,-900.75,0.00039178,15]
[420369833,1776041585826,-5584.03,0.00039178,15]
[420369834,1776041585835,-1104.11,0.00039178,15]
[420369835,1776041585846,-857.59,0.00039178,15]
[420369836,1776041585859,-500.0,0.00039178,15]
[420369837,1776041585869,-500.0,0.00039178,15]
[420369838,1776041585880,-500.0,0.00039178,15]
[420369839,1776041585891,-815.99,0.00039178,15]
[420369840,1776041585903,-1034.64,0.00039178,15]
[420369841,1776041585912,-868.13,0.00039178,15]
[420369842,1776041585925,-957.03,0.00039178,15]
[420369843,1776041585939,-1561.56,0.00039178,15]
[420369844,1776041585948,-523.62,0.00039178,2]
[420369845,1776041585968,-365.17366661,0.00039178,15]
[420369846,1776041585980,-500.0,0.00039178,15]
[420369847,1776041585990,-500.0,0.00039178,15]
[420369848,1776041586003,-647.72,0.00039178,15]
[420369849,1776041586018,-179.8169838,0.00039178,15]
[420369850,1776041586028,-1136.23,0.00039178,15]
[420369851,1776041586039,-1822.38,0.00039178,15]
[420369852,1776041586050,-500.0,0.00039178,15]
[420369853,1776041586072,-690.84,0.00039178,15]
[420369854,1776041586082,-904.8,0.00039178,15]
[420369855,1776041586093,-2160.91,0.00039178,15]
[420369856,1776041586106,-634.41,0.00039178,15]
[420369857,1776041586123,-500.0,0.00039178,15]
[420369858,1776041586132,-939.32,0.00039178,15]
[420369859,1776041586142,-1241.9,0.00039178,15]
[420369860,1776041586168,-1402.95,0.00039178,15]
[420369861,1776041586179,-500.0,0.00039178,15]
[420369862,1776041586191,-740.92,0.00039178,15]
[420369863,1776041586209,-500.0,0.00039178,15]
[420369864,1776041586243,-3106.17,0.00039178,15]
[420369865,1776041586262,-1400.48,0.00039178,15]
[420369866,1776041586286,-1399.26,0.00039178,15]
[420369867,1776041586303,-500.0,0.00039178,15]
[420369868,1776041586324,-500.0,0.00039178,15]
[420369869,1776041586334,-3891.46,0.00039178,15]
[420369870,1776041586355,-500.0,0.00039178,15]
[420369871,1776041586371,-1343.25,0.00039178,15]
[420369872,1776041586381,-871.08,0.00039178,15]
[420369873,1776041586419,-500.0,0.00039178,15]
[420369874,1776041586429,-500.0,0.00039178,15]
[420369875,1776041586451,-500.0,0.00039178,15]
[420369876,1776041586462,-3348.65,0.00039178,15]
[420369877,1776041586491,-500.0,0.00039178,15]
[420369878,1776041586502,-500.0,0.00039178,15]
[420369879,1776041586524,-623.58,0.00039178,15]
[420369880,1776041586535,-1764.73,0.00039178,15]
[420369881,1776041586544,-307.82032624,0.00039178,15]
[420369882,1776041586565,-605.34,0.00039178,15]
[420369883,1776041586576,-456.43293692,0.00039178,15]
[420369884,1776041586588,-1105.88,0.00039178,15]
[420369885,1776041586599,-523.38,0.00039178,15]
[420369886,1776041586621,-586.02763996,0.00039178,15]
[420369887,1776041586643,-2858.64,0.00039178,15]
[420369888,1776041586655,-500.0,0.00039178,15]
[420369889,1776041586667,-500.0,0.00039178,15]
[420369890,1776041586685,-500.0,0.00039178,15]
[420369891,1776041586710,-560.87361443,0.00039178,15]
[420369892,1776041586725,-500.0,0.00039178,15]
[420369893,1776041586745,-500.0,0.00039178,15]
[420369894,1776041586775,-1857.91,0.00039178,15]
[420369895,1776041586797,-1970.32,0.00039178,15]
[420369896,1776041586807,-500.0,0.00039178,15]
[420369897,1776041586817,-1096.43,0.00039178,15]
[420369898,1776041586834,-500.0,0.00039178,15]
[420369899,1776041586844,-1151.97,0.00039178,15]
[420369900,1776041586853,-609.08,0.00039178,15]
[420369901,1776041586862,-2001.91,0.00039178,15]
[420369902,1776041586881,-592.53,0.00039178,15]
[420369903,1776041586891,-500.0,0.00039178,15]
[420369904,1776041586901,-2384.68,0.00039178,15]
[420369905,1776041586915,-500.0,0.00039178,15]
[420369906,1776041586924,-1034.02,0.00039178,15]
[420369907,1776041586934,-1344.4,0.00039178,15]
[420369908,1776041586943,-2587.1,0.00039178,15]
[420369909,1776041586959,-1703.71,0.00039178,15]
[420369910,1776041586968,-1594.35,0.00039178,15]
[420369911,1776041586978,-952.18,0.00039178,15]
[420369912,1776041586987,-526.15,0.00039178,15]
[420369913,1776041587006,-1708.56,0.00039178,15]
[420369914,1776041587027,-1390.73,0.00039178,15]
[420369915,1776041587036,-723.29,0.00039178,15]
[420369916,1776041587050,-500.05,0.00039178,15]
[420369917,1776041587065,-500.0,0.00039178,15]
[420369918,1776041587075,-373.91280633,0.00039178,15]
[420369919,1776041587091,-500.0,0.00039178,15]
[420369920,1776041587103,-500.0,0.00039178,15]
[420369921,1776041587116,-995.87,0.00039178,15]
[420369922,1776041587138,-500.0,0.00039178,15]
[420369923,1776041587155,-1106.06,0.00039178,15]
[420369924,1776041587165,-500.0,0.00039178,15]
[420369925,1776041587187,-1283.69,0.00039178,15]
[420369926,1776041587218,-2291.91,0.00039178,15]
[420369927,1776041587236,-306.05277781,0.00039178,15]
[420369928,1776041587254,-1055.7,0.00039178,15]
[420369929,1776041587266,-500.0,0.00039178,15]
[420369930,1776041587285,-500.0,0.00039178,15]
[420369931,1776041587310,-500.0,0.00039178,15]
[420369932,1776041587323,-1734.95,0.00039178,15]
[420369933,1776041587351,-500.0,0.00039178,15]
[420369934,1776041587364,-500.0,0.00039178,15]
[420369935,1776041587414,-500.0,0.00039178,15]
[420369936,1776041587449,-1610.52,0.00039178,15]
[420369937,1776041587516,-970.57,0.00039178,15]
[420369938,1776041587531,-500.0,0.00039178,15]
[420369939,1776041587569,-749.82,0.00039178,15]
[420369940,1776041587581,-933.34,0.00039178,15]
[420369941,1776041587595,-500.0,0.00039178,15]
[420369942,1776041587610,-1188.63,0.00039178,15]
[420369943,1776041587621,-500.0,0.00039178,15]
[420369944,1776041587647,-643.8,0.00039178,15]
[420369945,1776041587658,-749.54,0.00039178,15]
[420369946,1776041587668,-524.17452606,0.00039178,15]
[420369947,1776041587697,-665.53,0.00039178,15]
[420369948,1776041587707,-3022.45,0.00039178,15]
[420369949,1776041587724,-730.53,0.00039178,15]
[420369950,1776041587743,-500.0,0.00039178,15]
[420369951,1776041587755,-500.0,0.00039178,15]
[420369952,1776041587770,-1125.09,0.00039178,15]
[420369953,1776041587798,-860.42,0.00039178,15]
[420369954,1776041587811,-500.0,0.00039178,15]
[420369955,1776041587831,-919.63,0.00039178,15]
[420369956,1776041587845,-3724.43,0.00039178,15]
[420369957,1776041587857,-566.56,0.00039178,15]
[420369958,1776041587890,-1642.97,0.00039178,15]
[420369959,1776041587902,-2935.94,0.00039178,15]
[420369960,1776041587919,-749.44,0.00039178,15]
[420369961,1776041587955,-1409.24,0.00039178,15]
[420369962,1776041587967,-1838.08,0.00039178,15]
[420369963,1776041587984,-500.0,0.00039178,15]
[420369964,1776041588010,-2539.74,0.00039178,15]
[420369965,1776041588020,-500.0,0.00039178,15]
[420369966,1776041588045,-3600.95,0.00039178,15]
[420369967,1776041588058,-594.11,0.00039178,15]
[420369968,1776041588077,-1740.79,0.00039178,15]
[420369969,1776041588089,-991.93,0.00039178,15]
[420369970,1776041588101,-544.97,0.00039178,15]
[420369971,1776041588118,-500.0,0.00039178,15]
[420369972,1776041588139,-3727.63,0.00039178,15]
[420369973,1776041588150,-1800.61,0.00039178,15]
[420369974,1776041588172,-1550.44,0.00039178,15]
[420369975,1776041588185,-935.8,0.00039178,15]
[420369976,1776041588196,-1389.57,0.00039178,15]
[420369977,1776041588228,-2959.44,0.00039178,15]
[420369978,1776041588274,-1416.09,0.00039178,15]
[420369979,1776041588287,-500.0,0.00039178,15]
[420369980,1776041588301,-666.88,0.00039178,15]
[420369981,1776041588324,-500.0,0.00039178,15]
[420369982,1776041588334,-823.28,0.00039178,15]
[420369983,1776041588358,-3237.88,0.00039178,15]
[420369984,1776041588368,-500.0,0.00039178,15]
[420369985,1776041588379,-903.79,0.00039178,15]
[420369986,1776041588399,-814.41,0.00039178,15]
[420369987,1776041588411,-500.0,0.00039178,15]
[420369988,1776041588422,-1102.66,0.00039178,15]
[420369989,1776041588438,-500.0,0.00039178,15]
[420369990,1776041588448,-1158.52,0.00039178,15]
[420369991,1776041588459,-1843.26,0.00039178,15]
[420369992,1776041588477,-2877.49,0.00039178,15]
[420369993,1776041588489,-4854.15,0.00039178,15]
[420369994,1776041588499,-2664.28,0.00039178,15]
[420369995,1776041588526,-500.0,0.00039178,15]
[420369996,1776041588537,-972.23,0.00039178,15]
[420369997,1776041588567,-500.0,0.00039178,15]
[420369998,1776041588580,-500.0,0.00039178,15]
[420369999,1776041588590,-239.29784901,0.00039178,15]
[420370000,1776041588615,-938.26,0.00039178,15]
[420370001,1776041588627,-1898.71,0.00039178,15]
[420370002,1776041588647,-2356.97,0.00039178,15]
[420370003,1776041588665,-500.0,0.00039178,15]
[420370004,1776041588682,-458.37613878,0.00039178,15]
[420370005,1776041588695,-15649.82,0.00039178,15]
[420370006,1776041588710,-500.0,0.00039178,15]
[420370007,1776041588726,-2333.12,0.00039178,15]
[420370008,1776041588756,-500.0,0.00039178,15]
[420370009,1776041588777,-6070.81,0.00039178,2]
[420370010,1776041588803,-1343.87,0.00039178,15]
[420370011,1776041588833,-500.0,0.00039178,15]
[420370012,1776041588847,-572.0,0.00039178,15]
[420370013,1776041588870,-500.0,0.00039178,15]
[420370014,1776041588898,-500.0,0.00039178,15]
[420370015,1776041588909,-726.46,0.00039178,15]
[420370016,1776041588928,-1977.12,0.00039178,15]
[420370017,1776041588939,-1912.95,0.00039178,15]
[420370018,1776041588950,-53919.81,0.00039178,15]
[420370019,1776041588962,-3973.18,0.00039178,15]
[420370020,1776041588975,-2080.47,0.00039178,15]
[420370021,1776041588987,-1380.83,0.00039178,15]
[420370022,1776041588997,-1594.37,0.00039178,15]
[420370023,1776041589010,-500.0,0.00039178,15]
[420370024,1776041589026,-2286.82,0.00039178,15]
[420370025,1776041589041,-1215.29,0.00039178,15]
[420370026,1776041589051,-2777.29,0.00039178,15]
[420370027,1776041589070,-174.96149958,0.00039178,15]
[420370028,1776041589082,-500.0,0.00039178,15]
[420370029,1776041589096,-1653.98,0.00039178,15]
[420370030,1776041589114,-500.0,0.00039178,15]
[420370031,1776041589139,-1383.8,0.00039178,15]
[420370032,1776041589149,-2757.74,0.00039178,15]
[420370033,1776041589159,-5671.16,0.00039178,14]
[420370034,1776041589188,-1337.28,0.00039178,15]
[420370035,1776041589198,-500.0,0.00039178,15]
[420370036,1776041589207,-1001.04,0.00039178,15]
[420370037,1776041589227,-565.18,0.00039178,15]
[420370038,1776041589240,-564.66,0.00039178,15]
[420370039,1776041589274,-3432.21,0.00039178,15]
[420370040,1776041589288,-1410.07,0.00039178,15]
[420370041,1776041589308,-500.0,0.00039178,15]
[420370042,1776041589323,-500.0,0.00039178,15]
[420370043,1776041589355,-2188.75,0.00039178,14]
[420370044,1776041589365,-500.0,0.00039178,15]
[420370045,1776041589377,-500.0,0.00039178,15]
[420370046,1776041589394,-555.08,0.00039178,15]
[420370047,1776041589403,-760.05,0.00039178,15]
[420370048,1776041589414,-522.26,0.00039178,15]
[420370049,1776041589429,-1451.02,0.00039178,15]
[420370050,1776041589443,-684.15,0.00039178,15]
[420370051,1776041589453,-2164.58,0.00039178,15]
[420370052,1776041589462,-2493.89,0.00039178,15]
[420370053,1776041589473,-500.0,0.00039178,15]
[420370054,1776041589490,-218.01190247,0.00039178,15]
[420370055,1776041589500,-500.0,0.00039178,15]
[420370056,1776041589510,-1258.95,0.00039178,15]
[420370057,1776041589520,-668.26,0.00039178,15]
[420370058,1776041589538,-841.2,0.00039178,15]
[420370059,1776041589548,-1402.85,0.00039178,15]
[420370060,1776041589558,-1966.15,0.00039178,15]
[420370061,1776041589574,-500.0,0.00039178,15]
[420370062,1776041589594,-2099.54,0.00039178,15]
[420370063,1776041589603,-500.0,0.00039178,15]
[420370064,1776041589614,-500.0,0.00039178,15]
[420370065,1776041589637,-500.0,0.00039178,15]
[420370066,1776041589648,-204.51569868,0.00039178,15]
[420370067,1776041589659,-1499.38,0.00039178,15]
[420370068,1776041589679,-1156.86,0.00039178,15]
[420370069,1776041589688,-500.0,0.00039178,15]
[420370070,1776041589702,-500.0,0.00039178,15]
[420370071,1776041589718,-727.01,0.00039178,15]
[420370072,1776041589728,-254.0081545,0.00039178,15]
[420370073,1776041589742,-500.0,0.00039178,15]
[420370074,1776041589758,-500.0,0.00039178,15]